[Event "Late-Titled-Tuesday-Blitz-September-26-2023"]
[Site "Chess.com"]
[Date "2023.09.26"]
[Round "6"]
[White "rasmussvane"]
[Black "kleinebeer98"]
[Result "1/2-1/2"]
[WhiteElo "2975"]
[BlackElo "2804"]
[TimeControl "180+1"]
[EndTime "15:05:46 PDT"]
[Termination "Game drawn - insufficient material"]

1. Nf3 {[%clk 0:03:00.9]} 1... Nf6 {[%clk 0:03:00.3]} 2. g3 {[%clk 0:03:00.7]}
2... g6 {[%clk 0:02:54.8]} 3. Bg2 {[%clk 0:03:00.4]} 3... Bg7 {[%clk 0:02:55.7]}
4. O-O {[%clk 0:03:00]} 4... O-O {[%clk 0:02:56.6]} 5. d4 {[%clk 0:03:00.4]}
5... d5 {[%clk 0:02:56.3]} 6. c4 {[%clk 0:03:00.6]} 6... c6 {[%clk 0:02:56.8]}
7. Qb3 {[%clk 0:03:00.7]} 7... a5 {[%clk 0:02:56.3]} 8. Rd1 {[%clk 0:03:00.7]}
8... a4 {[%clk 0:02:56.3]} 9. Qb4 {[%clk 0:03:01.3]} 9... Ne4 {[%clk 0:02:53.8]}
10. Bf4 {[%clk 0:02:57.8]} 10... dxc4 {[%clk 0:02:50]} 11. Qxc4 {[%clk
0:02:57.6]} 11... b5 {[%clk 0:02:49.3]} 12. Qc1 {[%clk 0:02:57.5]} 12... Be6
{[%clk 0:02:31.3]} 13. Ne5 {[%clk 0:02:43.9]} 13... Bd5 {[%clk 0:02:30.9]} 14.
f3 {[%clk 0:02:44.5]} 14... Nd6 {[%clk 0:02:19]} 15. e4 {[%clk 0:02:42.7]} 15...
Be6 {[%clk 0:02:15.7]} 16. Nc3 {[%clk 0:02:31.1]} 16... Qb6 {[%clk 0:02:07.8]}
17. Be3 {[%clk 0:02:31.2]} 17... Nc4 {[%clk 0:02:02]} 18. Nxc4 {[%clk
0:02:24.6]} 18... Bxc4 {[%clk 0:02:02.9]} 19. Qc2 {[%clk 0:02:21.1]} 19... e5
{[%clk 0:01:52.8]} 20. Qf2 {[%clk 0:02:12.5]} 20... exd4 {[%clk 0:01:52.4]} 21.
Bxd4 {[%clk 0:01:51.5]} 21... Bxd4 {[%clk 0:01:52.7]} 22. Qxd4 {[%clk
0:01:52.4]} 22... Nd7 {[%clk 0:01:44.1]} 23. Bf1 {[%clk 0:01:47.9]} 23... Qxd4+
{[%clk 0:01:38.1]} 24. Rxd4 {[%clk 0:01:47.9]} 24... Ne5 {[%clk 0:01:38.9]} 25.
Kf2 {[%clk 0:01:40.6]} 25... Rfd8 {[%clk 0:01:26.8]} 26. Rxd8+ {[%clk
0:01:26.5]} 26... Rxd8 {[%clk 0:01:27.7]} 27. Bxc4 {[%clk 0:01:22]} 27... Nxc4
{[%clk 0:01:28.6]} 28. Rd1 {[%clk 0:01:22]} 28... Ra8 {[%clk 0:01:13.4]} 29. b3
{[%clk 0:01:18.9]} 29... axb3 {[%clk 0:01:11]} 30. axb3 {[%clk 0:01:19.8]} 30...
Ra3 {[%clk 0:00:57.2]} 31. bxc4 {[%clk 0:01:20]} 31... Rxc3 {[%clk 0:00:57.8]}
32. cxb5 {[%clk 0:01:20.7]} 32... cxb5 {[%clk 0:00:58.6]} 33. h4 {[%clk
0:01:13.5]} 33... b4 {[%clk 0:00:52.9]} 34. Rd8+ {[%clk 0:01:13.2]} 34... Kg7
{[%clk 0:00:53]} 35. Rb8 {[%clk 0:01:14.1]} 35... b3 {[%clk 0:00:53.4]} 36. g4
{[%clk 0:01:12.7]} 36... h6 {[%clk 0:00:48.6]} 37. Rb6 {[%clk 0:00:50.3]} 37...
g5 {[%clk 0:00:46.3]} 38. h5 {[%clk 0:00:50.3]} 38... Rc2+ {[%clk 0:00:35.8]}
39. Ke3 {[%clk 0:00:50.1]} 39... Rb2 {[%clk 0:00:21.4]} 40. Kd4 {[%clk
0:00:37.4]} 40... Rb1 {[%clk 0:00:19.5]} 41. Ke5 {[%clk 0:00:35.6]} 41... b2
{[%clk 0:00:19.4]} 42. Rb7 {[%clk 0:00:30.9]} 42... Rf1 {[%clk 0:00:04.8]} 43.
Rxb2 {[%clk 0:00:30.9]} 43... Rxf3 {[%clk 0:00:05.5]} 44. Rg2 {[%clk 0:00:31.4]}
44... Rf4 {[%clk 0:00:05.5]} 45. Rg1 {[%clk 0:00:31]} 45... Rf2 {[%clk
0:00:05.1]} 46. Rg3 {[%clk 0:00:28.8]} 46... Ra2 {[%clk 0:00:05.5]} 47. Rg1
{[%clk 0:00:28.8]} 47... Ra5+ {[%clk 0:00:05.4]} 48. Kd4 {[%clk 0:00:29.1]}
48... Kf6 {[%clk 0:00:05.3]} 49. Rb1 {[%clk 0:00:28.2]} 49... Ra4+ {[%clk
0:00:05.1]} 50. Ke3 {[%clk 0:00:27.7]} 50... Ra3+ {[%clk 0:00:05.3]} 51. Kf2
{[%clk 0:00:28.1]} 51... Ke5 {[%clk 0:00:03.8]} 52. Rb6 {[%clk 0:00:25.7]} 52...
Kxe4 {[%clk 0:00:03.3]} 53. Rxh6 {[%clk 0:00:23.6]} 53... Kf4 {[%clk 0:00:03.1]}
54. Rf6+ {[%clk 0:00:20.3]} 54... Kxg4 {[%clk 0:00:03.8]} 55. Rxf7 {[%clk
0:00:20.1]} 55... Ra2+ {[%clk 0:00:03.6]} 56. Kg1 {[%clk 0:00:19.7]} 56... Kxh5
{[%clk 0:00:03.9]} 57. Rf3 {[%clk 0:00:19.7]} 57... Kh4 {[%clk 0:00:03.8]} 58.
Rb3 {[%clk 0:00:19.6]} 58... Rc2 {[%clk 0:00:03.9]} 59. Rd3 {[%clk 0:00:19.6]}
59... Rc1+ {[%clk 0:00:04.4]} 60. Kg2 {[%clk 0:00:19.7]} 60... Rb1 {[%clk
0:00:05.1]} 61. Rc3 {[%clk 0:00:19.5]} 61... Ra1 {[%clk 0:00:05.8]} 62. Rb3
{[%clk 0:00:19.7]} 62... Ra2+ {[%clk 0:00:06.5]} 63. Kg1 {[%clk 0:00:19.9]}
63... g4 {[%clk 0:00:07.4]} 64. Rd3 {[%clk 0:00:20]} 64... Kg5 {[%clk
0:00:07.6]} 65. Rb3 {[%clk 0:00:20]} 65... Rd2 {[%clk 0:00:07.5]} 66. Rb5+
{[%clk 0:00:19.7]} 66... Kh4 {[%clk 0:00:07.4]} 67. Rb3 {[%clk 0:00:20.6]} 67...
Rd4 {[%clk 0:00:07.4]} 68. Rc3 {[%clk 0:00:21]} 68... Rf4 {[%clk 0:00:07.9]} 69.
Rb3 {[%clk 0:00:21]} 69... Rf5 {[%clk 0:00:08.5]} 70. Rc3 {[%clk 0:00:20.7]}
70... Re5 {[%clk 0:00:09]} 71. Rb3 {[%clk 0:00:20.6]} 71... Kg5 {[%clk
0:00:09.8]} 72. Kg2 {[%clk 0:00:20.7]} 72... Kf5 {[%clk 0:00:09.1]} 73. Rc3
{[%clk 0:00:20.6]} 73... Re4 {[%clk 0:00:08.5]} 74. Rb3 {[%clk 0:00:20.7]} 74...
Kf4 {[%clk 0:00:09.1]} 75. Ra3 {[%clk 0:00:20.5]} 75... Re2+ {[%clk 0:00:09.2]}
76. Kg1 {[%clk 0:00:21]} 76... Rb2 {[%clk 0:00:10.1]} 77. Rc3 {[%clk 0:00:20.9]}
77... Rb8 {[%clk 0:00:07]} 78. Rc4+ {[%clk 0:00:20.5]} 78... Kf3 {[%clk
0:00:05.5]} 79. Rc3+ {[%clk 0:00:21.4]} 79... Kf4 {[%clk 0:00:06.1]} 80. Rc4+
{[%clk 0:00:21.4]} 80... Kg3 {[%clk 0:00:06.7]} 81. Rc3+ {[%clk 0:00:22.3]}
81... Kh4 {[%clk 0:00:07.2]} 82. Ra3 {[%clk 0:00:22.6]} 82... Rb2 {[%clk
0:00:07.3]} 83. Rc3 {[%clk 0:00:22.7]} 83... Ra2 {[%clk 0:00:07.7]} 84. Rb3
{[%clk 0:00:22.9]} 84... Ra8 {[%clk 0:00:08.1]} 85. Rd3 {[%clk 0:00:23]} 85...
Rf8 {[%clk 0:00:08.8]} 86. Rc3 {[%clk 0:00:23.2]} 86... Rf3 {[%clk 0:00:09.2]}
87. Rxf3 {[%clk 0:00:21]} 87... gxf3 {[%clk 0:00:10.1]} 88. Kf2 {[%clk
0:00:21.2]} 88... Kh3 {[%clk 0:00:09.6]} 89. Kxf3 {[%clk 0:00:21.4]} 1/2-1/2

[Event "Late-Titled-Tuesday-Blitz-September-26-2023"]
[Site "Chess.com"]
[Date "2023.09.26"]
[Round "6"]
[White "Chessdreamer2020"]
[Black "Chessbard1972"]
[Result "0-1"]
[WhiteElo "2513"]
[BlackElo "2390"]
[TimeControl "180+1"]
[EndTime "15:05:51 PDT"]
[Termination "Chessbard1972 won by checkmate"]

1. e4 {[%clk 0:03:00]} 1... c5 {[%clk 0:02:57.7]} 2. Nf3 {[%clk 0:02:59.9]} 2...
a6 {[%clk 0:02:57.1]} 3. g3 {[%clk 0:02:59.5]} 3... Nc6 {[%clk 0:02:55.7]} 4.
Bg2 {[%clk 0:02:59]} 4... g6 {[%clk 0:02:55.8]} 5. O-O {[%clk 0:02:59.2]} 5...
Bg7 {[%clk 0:02:55.7]} 6. c3 {[%clk 0:02:59.7]} 6... e5 {[%clk 0:02:55.2]} 7.
Na3 {[%clk 0:02:59.4]} 7... b5 {[%clk 0:02:53.7]} 8. Nc2 {[%clk 0:02:59.5]} 8...
Nge7 {[%clk 0:02:52.5]} 9. d4 {[%clk 0:02:59.8]} 9... cxd4 {[%clk 0:02:52.5]}
10. cxd4 {[%clk 0:03:00.7]} 10... exd4 {[%clk 0:02:48.7]} 11. Ncxd4 {[%clk
0:03:01.6]} 11... O-O {[%clk 0:02:47.5]} 12. Bf4 {[%clk 0:03:01]} 12... Bb7
{[%clk 0:02:45.2]} 13. Bd6 {[%clk 0:03:00.4]} 13... Re8 {[%clk 0:02:45.1]} 14.
Re1 {[%clk 0:02:52]} 14... Nc8 {[%clk 0:02:43.1]} 15. Bf4 {[%clk 0:02:41.4]}
15... Nb6 {[%clk 0:02:25.9]} 16. b3 {[%clk 0:02:37.1]} 16... d5 {[%clk
0:02:24.1]} 17. e5 {[%clk 0:02:32.6]} 17... Nd7 {[%clk 0:02:18]} 18. Nxc6 {[%clk
0:02:31.1]} 18... Bxc6 {[%clk 0:02:17.4]} 19. Rc1 {[%clk 0:02:30.5]} 19... Rc8
{[%clk 0:02:14]} 20. Nd4 {[%clk 0:02:24.9]} 20... Bb7 {[%clk 0:02:13.6]} 21.
Rxc8 {[%clk 0:02:24.2]} 21... Qxc8 {[%clk 0:02:13.4]} 22. e6 {[%clk 0:02:24.4]}
22... fxe6 {[%clk 0:02:10.4]} 23. Nxe6 {[%clk 0:02:23.9]} 23... Nf6 {[%clk
0:01:56.5]} 24. Nxg7 {[%clk 0:02:23]} 24... Kxg7 {[%clk 0:01:56.2]} 25. Be5
{[%clk 0:02:22.5]} 25... Rf8 {[%clk 0:01:32]} 26. Qd4 {[%clk 0:02:20.8]} 26...
Qe6 {[%clk 0:01:26.1]} 27. Re3 {[%clk 0:01:29]} 27... Kg8 {[%clk 0:01:18.9]} 28.
h3 {[%clk 0:01:13.6]} 28... Ne4 {[%clk 0:01:11.6]} 29. Bf4 {[%clk 0:00:49.9]}
29... Qf6 {[%clk 0:01:05.1]} 30. Qxf6 {[%clk 0:00:37.8]} 30... Rxf6 {[%clk
0:01:04.1]} 31. h4 {[%clk 0:00:36.8]} 31... Rc6 {[%clk 0:00:43.4]} 32. Re2
{[%clk 0:00:33.9]} 32... Rc3 {[%clk 0:00:40]} 33. Kh2 {[%clk 0:00:33.7]} 33...
Kf7 {[%clk 0:00:36.2]} 34. Bh3 {[%clk 0:00:31.7]} 34... d4 {[%clk 0:00:28.4]}
35. Bg2 {[%clk 0:00:29]} 35... Nc5 {[%clk 0:00:23]} 36. Bxb7 {[%clk 0:00:25]}
36... Nxb7 {[%clk 0:00:23.2]} 37. Rd2 {[%clk 0:00:20.5]} 37... d3 {[%clk
0:00:22.8]} 38. Be5 {[%clk 0:00:20.4]} 38... Rc2 {[%clk 0:00:21]} 39. Rxd3
{[%clk 0:00:19.4]} 39... Ke6 {[%clk 0:00:20.4]} 40. Bd4 {[%clk 0:00:19.3]} 40...
Rxa2 {[%clk 0:00:19.5]} 41. Rf3 {[%clk 0:00:18.7]} 41... Nd6 {[%clk 0:00:18.2]}
42. Rf6+ {[%clk 0:00:17.9]} 42... Kd5 {[%clk 0:00:18.5]} 43. Be3 {[%clk
0:00:17.6]} 43... Rb2 {[%clk 0:00:18]} 44. Bf4 {[%clk 0:00:15.8]} 44... Ne4
{[%clk 0:00:16.6]} 45. Rf7 {[%clk 0:00:14.2]} 45... h5 {[%clk 0:00:15.6]} 46.
Be3 {[%clk 0:00:14]} 46... Rxb3 {[%clk 0:00:14.7]} 47. Rf6 {[%clk 0:00:14.5]}
47... Ra3 {[%clk 0:00:14]} 48. Rxg6 {[%clk 0:00:14.5]} 48... b4 {[%clk 0:00:14]}
49. Rh6 {[%clk 0:00:14.4]} 49... b3 {[%clk 0:00:13.1]} 50. Rxh5+ {[%clk
0:00:14.9]} 50... Kc4 {[%clk 0:00:13.9]} 51. Re5 {[%clk 0:00:14.4]} 51... Kd3
{[%clk 0:00:12]} 52. Rd5+ {[%clk 0:00:14]} 52... Kc2 {[%clk 0:00:11.7]} 53. Bd4
{[%clk 0:00:13.3]} 53... Nc3 {[%clk 0:00:11.7]} 54. Rc5 {[%clk 0:00:13.1]} 54...
b2 {[%clk 0:00:12.2]} 55. Bxc3 {[%clk 0:00:09.6]} 55... Rxc3 {[%clk 0:00:11.8]}
56. Ra5 {[%clk 0:00:09.1]} 56... b1=Q {[%clk 0:00:11.7]} 57. Rxa6 {[%clk
0:00:10]} 57... Qb5 {[%clk 0:00:11.3]} 58. Rf6 {[%clk 0:00:09.8]} 58... Qf1
{[%clk 0:00:10.3]} 59. Rf4 {[%clk 0:00:07.9]} 59... Kb3 {[%clk 0:00:10.3]} 60.
h5 {[%clk 0:00:08.1]} 60... Rc1 {[%clk 0:00:10.2]} 61. g4 {[%clk 0:00:05.9]}
61... Qg1+ {[%clk 0:00:08.1]} 62. Kh3 {[%clk 0:00:06.4]} 62... Rc3+ {[%clk
0:00:07.9]} 63. Kh4 {[%clk 0:00:06.6]} 63... Qh1+ {[%clk 0:00:07.1]} 64. Kg5
{[%clk 0:00:07.2]} 64... Rc5+ {[%clk 0:00:07.3]} 65. Kg6 {[%clk 0:00:06.3]}
65... Qc6+ {[%clk 0:00:06.5]} 66. Rf6 {[%clk 0:00:06.7]} 66... Qe8+ {[%clk
0:00:07.1]} 67. Kg7 {[%clk 0:00:05.8]} 67... Rc7+ {[%clk 0:00:06.5]} 68. Kh6
{[%clk 0:00:06.4]} 68... Qh8+ {[%clk 0:00:06.3]} 69. Kg5 {[%clk 0:00:06.3]}
69... Rc5+ {[%clk 0:00:05.6]} 70. Kg6 {[%clk 0:00:05.5]} 70... Qg8+ {[%clk
0:00:05.2]} 71. Kh6 {[%clk 0:00:05.1]} 71... Qg5+ {[%clk 0:00:05.4]} 72. Kh7
{[%clk 0:00:05]} 72... Qxf6 {[%clk 0:00:06]} 73. f4 {[%clk 0:00:05.9]} 73...
Rc7+ {[%clk 0:00:06.1]} 74. Kg8 {[%clk 0:00:05.8]} 74... Qd8# {[%clk 0:00:07]}
0-1

[Event "Late-Titled-Tuesday-Blitz-September-26-2023"]
[Site "Chess.com"]
[Date "2023.09.26"]
[Round "6"]
[White "Defenstrator"]
[Black "Lion_DL"]
[Result "1-0"]
[WhiteElo "2386"]
[BlackElo "2492"]
[TimeControl "180+1"]
[EndTime "15:06:57 PDT"]
[Termination "Defenstrator won by checkmate"]

1. e4 {[%clk 0:02:59.4]} 1... Nc6 {[%clk 0:02:59.2]} 2. b4 {[%clk 0:02:58.7]}
2... Nxb4 {[%clk 0:02:57.1]} 3. d4 {[%clk 0:02:58.6]} 3... d5 {[%clk 0:02:55.5]}
4. c4 {[%clk 0:02:58.9]} 4... dxe4 {[%clk 0:02:51.1]} 5. Qa4+ {[%clk 0:02:57.6]}
5... Nc6 {[%clk 0:02:47.5]} 6. d5 {[%clk 0:02:56.7]} 6... Bd7 {[%clk 0:02:48.2]}
7. dxc6 {[%clk 0:02:55.6]} 7... Bxc6 {[%clk 0:02:49.1]} 8. Qc2 {[%clk
0:02:51.1]} 8... e5 {[%clk 0:02:46]} 9. Nc3 {[%clk 0:02:43.9]} 9... Bb4 {[%clk
0:02:26.8]} 10. Bd2 {[%clk 0:02:41.1]} 10... Nf6 {[%clk 0:02:14.2]} 11. Nge2
{[%clk 0:02:32]} 11... O-O {[%clk 0:02:09.1]} 12. Ng3 {[%clk 0:02:32.2]} 12...
Qd4 {[%clk 0:02:00.4]} 13. Nf5 {[%clk 0:02:14.2]} 13... Qd7 {[%clk 0:01:48.7]}
14. Ne3 {[%clk 0:02:01.4]} 14... Rad8 {[%clk 0:01:42.4]} 15. Ncd5 {[%clk
0:01:48]} 15... Bxd2+ {[%clk 0:01:34.9]} 16. Qxd2 {[%clk 0:01:47.3]} 16... Bxd5
{[%clk 0:01:34]} 17. cxd5 {[%clk 0:01:46.4]} 17... c6 {[%clk 0:01:33.1]} 18. Rb1
{[%clk 0:01:23.1]} 18... cxd5 {[%clk 0:01:32.8]} 19. Bb5 {[%clk 0:01:23.1]}
19... Qe6 {[%clk 0:01:28.3]} 20. O-O {[%clk 0:01:21.6]} 20... g6 {[%clk
0:01:16.7]} 21. Qb2 {[%clk 0:00:55]} 21... b6 {[%clk 0:01:10]} 22. f4 {[%clk
0:00:47.6]} 22... exf3 {[%clk 0:00:56.5]} 23. Rxf3 {[%clk 0:00:47.1]} 23... d4
{[%clk 0:00:55]} 24. Rbf1 {[%clk 0:00:37.6]} 24... Ne4 {[%clk 0:00:20]} 25. Bc4
{[%clk 0:00:32.9]} 25... Qc6 {[%clk 0:00:20.5]} 26. Rxf7 {[%clk 0:00:17.2]}
26... Rxf7 {[%clk 0:00:21.1]} 27. Bxf7+ {[%clk 0:00:16.5]} 27... Kh8 {[%clk
0:00:18.8]} 28. Ng4 {[%clk 0:00:17.2]} 28... Rf8 {[%clk 0:00:17.9]} 29. Nxe5
{[%clk 0:00:17]} 29... Qd6 {[%clk 0:00:16.6]} 30. Nc4 {[%clk 0:00:13.6]} 30...
Qc5 {[%clk 0:00:16.3]} 31. Qe2 {[%clk 0:00:08.9]} 31... d3+ {[%clk 0:00:15.8]}
32. Qe3 {[%clk 0:00:08.5]} 32... Qxe3+ {[%clk 0:00:14.8]} 33. Nxe3 {[%clk
0:00:09.4]} 33... d2 {[%clk 0:00:14.8]} 34. Bb3 {[%clk 0:00:09.8]} 34... Rd8
{[%clk 0:00:14.7]} 35. Nc4 {[%clk 0:00:04.1]} 35... b5 {[%clk 0:00:13.7]} 36.
Ne5 {[%clk 0:00:04.3]} 36... Kg7 {[%clk 0:00:11.9]} 37. Nc6 {[%clk 0:00:04.3]}
37... Rd7 {[%clk 0:00:11]} 38. Bc2 {[%clk 0:00:05.1]} 38... Nc3 {[%clk
0:00:10.3]} 39. Bd1 {[%clk 0:00:05.2]} 39... Rc7 {[%clk 0:00:10.7]} 40. Ne5
{[%clk 0:00:05.3]} 40... a5 {[%clk 0:00:10.6]} 41. Nf3 {[%clk 0:00:05.2]} 41...
Rd7 {[%clk 0:00:10.2]} 42. Kf2 {[%clk 0:00:05.3]} 42... b4 {[%clk 0:00:10.3]}
43. Ke3 {[%clk 0:00:06.1]} 43... Nxa2 {[%clk 0:00:10.4]} 44. Nxd2 {[%clk
0:00:06]} 44... Nc3 {[%clk 0:00:11.1]} 45. Bb3 {[%clk 0:00:05.8]} 45... a4
{[%clk 0:00:10.4]} 46. Bc4 {[%clk 0:00:06.1]} 46... b3 {[%clk 0:00:10.8]} 47.
Nxb3 {[%clk 0:00:06.2]} 47... axb3 {[%clk 0:00:10.7]} 48. Bxb3 {[%clk
0:00:07.1]} 48... Nd5+ {[%clk 0:00:10.9]} 49. Bxd5 {[%clk 0:00:07.4]} 49... Rxd5
{[%clk 0:00:11.8]} 50. Ke4 {[%clk 0:00:08.1]} 50... Rg5 {[%clk 0:00:11.4]} 51.
g3 {[%clk 0:00:08.8]} 51... Ra5 {[%clk 0:00:12]} 52. Rd1 {[%clk 0:00:08.6]}
52... Ra4+ {[%clk 0:00:12.4]} 53. Kf3 {[%clk 0:00:09.5]} 53... Ra2 {[%clk
0:00:13.3]} 54. h4 {[%clk 0:00:09.9]} 54... Kh6 {[%clk 0:00:13.7]} 55. Rd5
{[%clk 0:00:09.8]} 55... Ra3+ {[%clk 0:00:13.9]} 56. Kg4 {[%clk 0:00:10.5]}
56... Ra4+ {[%clk 0:00:13.2]} 57. Kh3 {[%clk 0:00:11.3]} 57... Ra7 {[%clk
0:00:13]} 58. Rd3 {[%clk 0:00:11]} 58... Kg7 {[%clk 0:00:13.9]} 59. Rb3 {[%clk
0:00:11.6]} 59... h6 {[%clk 0:00:14.2]} 60. Kg4 {[%clk 0:00:11.9]} 60... Ra4+
{[%clk 0:00:14.1]} 61. Kh3 {[%clk 0:00:12.8]} 61... Ra6 {[%clk 0:00:14.3]} 62.
Rb5 {[%clk 0:00:13.1]} 62... Kf6 {[%clk 0:00:14.8]} 63. Kg4 {[%clk 0:00:12.1]}
63... Ra4+ {[%clk 0:00:15.3]} 64. Kh3 {[%clk 0:00:13]} 64... Re4 {[%clk
0:00:14.8]} 65. Rb6+ {[%clk 0:00:13.4]} 65... Kf5 {[%clk 0:00:14.5]} 66. g4+
{[%clk 0:00:13.2]} 66... Kf4 {[%clk 0:00:10.8]} 67. Rf6+ {[%clk 0:00:13]} 67...
Ke5 {[%clk 0:00:09.3]} 68. Rxg6 {[%clk 0:00:12.4]} 68... h5 {[%clk 0:00:08.5]}
69. Rg5+ {[%clk 0:00:11.2]} 69... Kf6 {[%clk 0:00:08.5]} 70. Rxh5 {[%clk
0:00:11.1]} 70... Re3+ {[%clk 0:00:09.4]} 71. Kg2 {[%clk 0:00:11.3]} 71... Re4
{[%clk 0:00:09.5]} 72. Kf3 {[%clk 0:00:10.9]} 72... Ra4 {[%clk 0:00:10.4]} 73.
Rh6+ {[%clk 0:00:11.4]} 73... Kg7 {[%clk 0:00:10.6]} 74. Re6 {[%clk 0:00:11.6]}
74... Ra3+ {[%clk 0:00:11.5]} 75. Re3 {[%clk 0:00:12.5]} 75... Ra4 {[%clk
0:00:12]} 76. Re4 {[%clk 0:00:11]} 76... Ra3+ {[%clk 0:00:12.2]} 77. Kf4 {[%clk
0:00:11.9]} 77... Ra1 {[%clk 0:00:12.3]} 78. Rb4 {[%clk 0:00:09.2]} 78... Ra5
{[%clk 0:00:12.1]} 79. Rb7+ {[%clk 0:00:07.7]} 79... Kg6 {[%clk 0:00:12.5]} 80.
Rb6+ {[%clk 0:00:08.6]} 80... Kg7 {[%clk 0:00:12.7]} 81. g5 {[%clk 0:00:07.3]}
81... Kh7 {[%clk 0:00:13.6]} 82. Kg4 {[%clk 0:00:06.8]} 82... Kg7 {[%clk
0:00:13.1]} 83. Kh5 {[%clk 0:00:07.2]} 83... Kh7 {[%clk 0:00:13.6]} 84. Rb7+
{[%clk 0:00:07.7]} 84... Kh8 {[%clk 0:00:13.9]} 85. Kh6 {[%clk 0:00:08.1]} 85...
Ra8 {[%clk 0:00:14.3]} 86. g6 {[%clk 0:00:07.7]} 86... Rc8 {[%clk 0:00:14.6]}
87. h5 {[%clk 0:00:05]} 87... Kg8 {[%clk 0:00:14.8]} 88. Rg7+ {[%clk 0:00:04.6]}
88... Kh8 {[%clk 0:00:15.4]} 89. Rd7 {[%clk 0:00:04.8]} 89... Kg8 {[%clk
0:00:16.1]} 90. Rd6 {[%clk 0:00:04.2]} 90... Kh8 {[%clk 0:00:16.6]} 91. Ra6
{[%clk 0:00:04.8]} 91... Kg8 {[%clk 0:00:17.1]} 92. Ra5 {[%clk 0:00:05]} 92...
Kh8 {[%clk 0:00:17.7]} 93. Kg5 {[%clk 0:00:05.9]} 93... Kg8 {[%clk 0:00:18.3]}
94. h6 {[%clk 0:00:06.8]} 94... Kh8 {[%clk 0:00:18.6]} 95. Ra6 {[%clk
0:00:06.8]} 95... Kg8 {[%clk 0:00:19.1]} 96. Kf6 {[%clk 0:00:07.6]} 96... Kh8
{[%clk 0:00:18.6]} 97. Rd6 {[%clk 0:00:06.5]} 97... Kg8 {[%clk 0:00:18.7]} 98.
Re6 {[%clk 0:00:04.8]} 98... Rf8+ {[%clk 0:00:18.5]} 99. Kg5 {[%clk 0:00:05.7]}
99... Rc8 {[%clk 0:00:18.5]} 100. h7+ {[%clk 0:00:06.2]} 100... Kh8 {[%clk
0:00:18.9]} 101. Kh6 {[%clk 0:00:07]} 101... Rf8 {[%clk 0:00:18.5]} 102. g7#
{[%clk 0:00:07.6]} 1-0

[Event "Late-Titled-Tuesday-Blitz-September-26-2023"]
[Site "Chess.com"]
[Date "2023.09.26"]
[Round "7"]
[White "Oleksandr_Bortnyk"]
[Black "ShiroglanTalibov"]
[Result "1-0"]
[WhiteElo "3014"]
[BlackElo "2855"]
[TimeControl "180+1"]
[EndTime "15:09:11 PDT"]
[Termination "Oleksandr_Bortnyk won by resignation"]

1. d4 {[%clk 0:03:00.9]} 1... Nf6 {[%clk 0:02:58.3]} 2. Nc3 {[%clk 0:02:57.8]}
2... d5 {[%clk 0:02:57.1]} 3. Bf4 {[%clk 0:02:57.8]} 3... a6 {[%clk 0:02:51.7]}
4. e3 {[%clk 0:02:57.2]} 4... Bf5 {[%clk 0:02:50.2]} 5. Nf3 {[%clk 0:02:57]}
5... e6 {[%clk 0:02:49.8]} 6. Ne5 {[%clk 0:02:57.5]} 6... c5 {[%clk 0:02:48.9]}
7. g4 {[%clk 0:02:57.8]} 7... Be4 {[%clk 0:02:43.3]} 8. f3 {[%clk 0:02:58.1]}
8... Bg6 {[%clk 0:02:43.2]} 9. h4 {[%clk 0:02:58.7]} 9... h5 {[%clk 0:02:36.2]}
10. g5 {[%clk 0:02:52.1]} 10... Ng8 {[%clk 0:02:30]} 11. Nxg6 {[%clk 0:02:51.9]}
11... fxg6 {[%clk 0:02:30.9]} 12. Bh3 {[%clk 0:02:50.9]} 12... Kf7 {[%clk
0:02:30.3]} 13. Qd3 {[%clk 0:02:42.1]} 13... Qd7 {[%clk 0:02:30]} 14. dxc5
{[%clk 0:02:39.2]} 14... Bxc5 {[%clk 0:02:28.8]} 15. O-O-O {[%clk 0:02:37.1]}
15... Ne7 {[%clk 0:02:27.5]} 16. e4 {[%clk 0:02:32.7]} 16... d4 {[%clk
0:02:27.5]} 17. Nd5 {[%clk 0:02:28]} 17... Nbc6 {[%clk 0:02:25.1]} 18. Nc7
{[%clk 0:02:27.2]} 1-0

[Event "Late-Titled-Tuesday-Blitz-September-26-2023"]
[Site "Chess.com"]
[Date "2023.09.26"]
[Round "7"]
[White "Dhaydon19"]
[Black "AleksanderHnydiuk"]
[Result "1-0"]
[WhiteElo "2732"]
[BlackElo "2548"]
[TimeControl "180+1"]
[EndTime "15:10:28 PDT"]
[Termination "Dhaydon19 won by resignation"]

1. d4 {[%clk 0:02:50.1]} 1... g6 {[%clk 0:02:55.9]} 2. Nc3 {[%clk 0:02:50.5]}
2... Bg7 {[%clk 0:02:55.3]} 3. e4 {[%clk 0:02:50.9]} 3... c6 {[%clk 0:02:50.8]}
4. f4 {[%clk 0:02:49.1]} 4... d5 {[%clk 0:02:49.6]} 5. e5 {[%clk 0:02:48.9]}
5... h5 {[%clk 0:02:48.9]} 6. Nf3 {[%clk 0:02:48.3]} 6... Nh6 {[%clk 0:02:47.2]}
7. Bd3 {[%clk 0:02:47.7]} 7... Bg4 {[%clk 0:02:47.1]} 8. O-O {[%clk 0:02:46.7]}
8... e6 {[%clk 0:02:44.5]} 9. Ne2 {[%clk 0:02:46.3]} 9... c5 {[%clk 0:02:42.6]}
10. dxc5 {[%clk 0:02:43.5]} 10... Qa5 {[%clk 0:02:28.1]} 11. Be3 {[%clk
0:02:42.1]} 11... Bf8 {[%clk 0:02:26.6]} 12. b4 {[%clk 0:02:34.6]} 12... Qxb4
{[%clk 0:02:19.3]} 13. Rb1 {[%clk 0:02:34.5]} 13... Qa3 {[%clk 0:02:15.2]} 14.
Rxb7 {[%clk 0:02:32.7]} 14... Bxc5 {[%clk 0:02:14]} 15. Bb5+ {[%clk 0:02:15.5]}
15... Kf8 {[%clk 0:02:13.6]} 16. Bxc5+ {[%clk 0:02:11.8]} 16... Qxc5+ {[%clk
0:02:14.5]} 17. Qd4 {[%clk 0:02:10.2]} 17... Qxd4+ {[%clk 0:01:52.7]} 18. Nexd4
{[%clk 0:02:10]} 18... Nf5 {[%clk 0:01:37.5]} 19. Nxf5 {[%clk 0:02:09.8]} 19...
Bxf5 {[%clk 0:01:34.6]} 20. Ng5 {[%clk 0:02:07.9]} 1-0

[Event "Late-Titled-Tuesday-Blitz-September-26-2023"]
[Site "Chess.com"]
[Date "2023.09.26"]
[Round "7"]
[White "Slovak_fighter2000"]
[Black "jaskol95"]
[Result "0-1"]
[WhiteElo "2466"]
[BlackElo "2630"]
[TimeControl "180+1"]
[EndTime "15:10:54 PDT"]
[Termination "jaskol95 won by resignation"]

1. d4 {[%clk 0:03:00.9]} 1... d5 {[%clk 0:03:00.2]} 2. c4 {[%clk 0:02:59.7]}
2... e5 {[%clk 0:03:00.1]} 3. dxe5 {[%clk 0:02:57.8]} 3... d4 {[%clk 0:03:00.6]}
4. Nf3 {[%clk 0:02:55.6]} 4... Nc6 {[%clk 0:03:00.9]} 5. a3 {[%clk 0:02:51]}
5... a5 {[%clk 0:03:01.1]} 6. e3 {[%clk 0:02:38.7]} 6... Bc5 {[%clk 0:02:59.6]}
7. exd4 {[%clk 0:02:27.6]} 7... Bxd4 {[%clk 0:02:59.9]} 8. Nxd4 {[%clk
0:02:24.9]} 8... Qxd4 {[%clk 0:03:00.2]} 9. Qxd4 {[%clk 0:02:16.3]} 9... Nxd4
{[%clk 0:03:00.5]} 10. Bd3 {[%clk 0:02:03.1]} 10... Nb3 {[%clk 0:02:55.8]} 11.
Nd2 {[%clk 0:01:01.5]} 11... Nxa1 {[%clk 0:02:54.7]} 12. a4 {[%clk 0:01:01.3]}
12... Ne7 {[%clk 0:02:34.1]} 13. b3 {[%clk 0:00:56.3]} 13... Bf5 {[%clk
0:02:32.6]} 14. Bxf5 {[%clk 0:00:44.3]} 14... Nxf5 {[%clk 0:02:32.7]} 15. Kd1
{[%clk 0:00:37.3]} 15... O-O-O {[%clk 0:02:28.6]} 0-1